fUST/lending_fUST_20250618
["ID","MTS","AMOUNT","RATE_DAILY","PERIOD"]
[366427850,1750252243166,-460.0,0.00022191,6]
[366427852,1750252243176,-420.98377226,0.00022191,6]
[366427854,1750252243186,-460.0,0.00022191,6]
[366427856,1750252243195,-460.0,0.00022191,6]
[366427858,1750252243205,-460.0,0.00022191,6]
[366427860,1750252243215,-460.0,0.00022191,6]
[366427863,1750252243225,-460.0,0.00022191,6]
[366427865,1750252243234,-460.0,0.00022191,6]
[366427866,1750252243244,-460.0,0.00022191,6]
[366427868,1750252243253,-497.04,0.00022191,6]
[366427870,1750252243263,-460.0,0.00022191,6]
[366427872,1750252243272,-1212.23,0.00022191,6]
[366427874,1750252243281,-460.0,0.00022191,6]
[366427876,1750252243290,-460.0,0.00022191,6]
[366427878,1750252243300,-460.0,0.00022191,6]
[366427880,1750252243309,-460.0,0.00022191,6]
[366427882,1750252243318,-460.0,0.00022191,6]
[366427884,1750252243327,-460.0,0.00022191,6]
[366427886,1750252243337,-460.0,0.00022191,6]
[366427888,1750252243346,-460.0,0.00022191,6]
[366427890,1750252243355,-460.0,0.00022191,6]
[366427892,1750252243364,-460.0,0.00022191,6]
[366427894,1750252243373,-542.16780769,0.00022191,6]
[366427896,1750252243383,-460.0,0.00022191,6]
[366427898,1750252243392,-460.0,0.00022191,6]
[366427900,1750252243401,-460.0,0.00022191,6]
[366427902,1750252243413,-380.0,0.00022191,6]
[366427904,1750252243422,-1479.93,0.00022191,6]
[366427906,1750252243431,-460.0,0.00022191,6]
[366427908,1750252243441,-1494.46,0.00022191,6]
[366427910,1750252243450,-460.0,0.00022191,6]
[366427912,1750252243459,-460.0,0.00022191,6]
[366427914,1750252243469,-389.49301944,0.00022191,6]
[366427916,1750252243479,-460.0,0.00022191,6]
[366427918,1750252243489,-390.0,0.00022191,6]
[366427920,1750252243498,-460.0,0.00022191,6]
[366427922,1750252243507,-896.68,0.00022191,6]
[366427924,1750252243516,-460.0,0.00022191,6]
[366427926,1750252243526,-460.0,0.00022191,6]
[366427928,1750252243535,-1162.77,0.00022191,6]
[366427930,1750252243544,-460.0,0.00022191,6]
[366427932,1750252243554,-460.0,0.00022191,6]
[366427934,1750252243563,-460.0,0.00022191,6]
[366427936,1750252243572,-460.0,0.00022191,6]
[366427938,1750252243581,-1027.62,0.00022191,6]
[366427940,1750252243590,-460.0,0.00022191,6]
[366427942,1750252243599,-460.0,0.00022191,6]
[366427944,1750252243608,-460.0,0.00022191,6]
[366427946,1750252243617,-460.0,0.00022191,6]
[366427947,1750252243626,-460.0,0.00022191,6]
[366427949,1750252243637,-460.0,0.00022191,6]
[366427951,1750252243646,-460.0,0.00022191,6]
[366427953,1750252243655,-460.0,0.00022191,6]
[366427955,1750252243665,-460.0,0.00022191,6]
[366427957,1750252243674,-333.31956456,0.00022191,6]
[366427959,1750252243683,-460.0,0.00022191,6]
[366427961,1750252243692,-460.0,0.00022191,6]
[366427963,1750252243701,-460.0,0.00022191,6]
[366427965,1750252243711,-460.0,0.00022191,6]
[366427967,1750252243720,-460.0,0.00022191,6]
[366427969,1750252243731,-731.23,0.00022191,6]
[366427971,1750252243740,-460.0,0.00022191,6]
[366427973,1750252243750,-460.0,0.00022191,6]
[366427975,1750252243760,-460.0,0.00022191,6]
[366427977,1750252243769,-460.0,0.00022191,6]
[366427979,1750252243779,-460.0,0.00022191,6]
[366427981,1750252243788,-460.0,0.00022191,6]
[366427983,1750252243798,-460.0,0.00022191,6]
[366427985,1750252243807,-460.0,0.00022191,6]
[366427987,1750252243818,-379.42299405,0.00022191,6]
[366427989,1750252243827,-460.0,0.00022191,6]
[366427991,1750252243836,-460.0,0.00022191,6]
[366427993,1750252243846,-460.0,0.00022191,6]
[366427995,1750252243856,-460.0,0.00022191,6]
[366427997,1750252243865,-460.0,0.00022191,6]
[366427999,1750252243875,-460.0,0.00022191,6]
[366428001,1750252243884,-460.0,0.00022191,6]
[366428003,1750252243894,-460.0,0.00022191,6]
[366428005,1750252243903,-460.0,0.00022191,6]
[366428007,1750252243913,-507.09,0.00022191,6]
[366428009,1750252243923,-460.0,0.00022191,6]
[366428011,1750252243936,-872.53,0.00022191,6]
[366428013,1750252243946,-390.0,0.00022191,6]
[366428015,1750252243956,-460.0,0.00022191,6]
[366428017,1750252243966,-460.0,0.00022191,6]
[366428019,1750252243976,-293.87995435,0.00022191,6]
[366428021,1750252243985,-460.0,0.00022191,6]
[366428023,1750252243995,-460.0,0.00022191,6]
[366428025,1750252244005,-460.0,0.00022191,6]
[366428027,1750252244015,-460.0,0.00022191,6]
[366428029,1750252244025,-460.0,0.00022191,6]
[366428030,1750252244035,-460.0,0.00022191,6]
[366428032,1750252244044,-437.2581522,0.00022191,6]
[366428035,1750252244054,-460.0,0.00022191,6]
[366428037,1750252244064,-380.0,0.00022191,6]
[366428039,1750252244073,-460.0,0.00022191,6]
[366428040,1750252244082,-535.46,0.00022191,6]
[366428042,1750252244092,-294.09,0.00022191,6]
[366428044,1750252244102,-460.0,0.00022191,6]
[366428046,1750252244111,-360.0,0.00022191,6]
[366428048,1750252244122,-460.0,0.00022191,6]
[366428050,1750252244131,-460.0,0.00022191,6]
[366428052,1750252244141,-445.12610633,0.00022191,6]
[366428055,1750252244150,-460.0,0.00022191,6]
[366428056,1750252244160,-392.54800341,0.00022191,6]
[366428059,1750252244170,-340.0,0.00022191,6]
[366428061,1750252244179,-460.0,0.00022191,6]
[366428062,1750252244188,-460.0,0.00022191,6]
[366428064,1750252244198,-460.0,0.00022191,6]
[366428066,1750252244207,-460.0,0.00022191,6]
[366428068,1750252244217,-460.0,0.00022191,6]
[366428070,1750252244227,-405.16556294,0.00022191,6]
[366428072,1750252244238,-460.0,0.00022191,6]
[366428074,1750252244247,-3020.47,0.00022191,6]
[366428076,1750252244257,-432.44081996,0.00022191,6]
[366428078,1750252244267,-460.0,0.00022191,6]
[366428080,1750252244276,-1237.72,0.00022191,6]
[366428082,1750252244287,-298.29459163,0.00022191,2]
[366428084,1750252244296,-460.0,0.00022191,6]
[366428086,1750252244305,-460.0,0.00022191,6]
[366428088,1750252244314,-460.0,0.00022191,6]
[366428090,1750252244324,-460.0,0.00022191,6]
[366428092,1750252244334,-460.0,0.00022191,6]
[366428094,1750252244344,-981.72583137,0.00022219,2]
[366428096,1750252244353,-2161.0,0.00022267,2]
[366428098,1750252244363,-653.0,0.00022267,2]
[366428100,1750252244372,-208.8,0.00022287,5]
[366428102,1750252244382,-587.0,0.00022332,2]
[366428104,1750252244391,-1521.50742211,0.00022383,7]
[366428106,1750252244401,-624.0,0.0002244,2]
[366428108,1750252244410,-151.0,0.00022452,7]
[366428110,1750252244420,-151.0,0.00022465,7]
[366428112,1750252244429,-460.0,0.00022465,6]
[366428114,1750252244438,-460.0,0.00022465,6]
[366428116,1750252244447,-460.0,0.00022465,6]
[366428118,1750252244456,-460.0,0.00022465,2]
[366428120,1750252244465,-602.95301703,0.00022465,6]
[366428122,1750252244474,-460.0,0.00022465,6]
[366428124,1750252244483,-460.0,0.00022465,6]
[366428126,1750252244492,-460.0,0.00022465,6]
[366428128,1750252244502,-460.0,0.00022465,6]
[366428129,1750252244511,-500.0,0.00022465,6]
[366428131,1750252244520,-460.0,0.00022465,6]
[366428133,1750252244530,-460.0,0.00022465,6]
[366428135,1750252244539,-460.0,0.00022465,6]
[366428137,1750252244548,-460.0,0.00022465,6]
[366428139,1750252244557,-460.0,0.00022465,6]
[366428141,1750252244566,-460.0,0.00022465,6]
[366428143,1750252244578,-460.0,0.00022465,6]
[366428145,1750252244588,-460.0,0.00022465,6]
[366428147,1750252244598,-460.0,0.00022465,6]
[366428149,1750252244607,-460.0,0.00022465,6]
[366428151,1750252244616,-460.0,0.00022465,6]
[366428153,1750252244625,-460.0,0.00022465,6]
[366428155,1750252244634,-460.0,0.00022465,6]
[366428157,1750252244644,-410.0,0.00022465,6]
[366428159,1750252244653,-311.12835272,0.00022465,6]
[366428162,1750252244672,-460.0,0.00022465,6]
[366428164,1750252244683,-460.0,0.00022465,6]
[366428166,1750252244693,-460.0,0.00022465,6]
[366428168,1750252244703,-460.0,0.00022465,6]
[366428170,1750252244713,-460.0,0.00022465,6]
[366428172,1750252244723,-309.65694276,0.00022465,6]
[366428175,1750252244734,-460.0,0.00022465,6]
[366428177,1750252244743,-460.0,0.00022465,6]
[366428179,1750252244753,-502.59195497,0.00022465,6]
[366428181,1750252244764,-460.0,0.00022465,6]
[366428183,1750252244774,-398.87,0.00022465,6]
[366428185,1750252244783,-460.0,0.00022465,6]
[366428187,1750252244794,-460.0,0.00022465,6]
[366428189,1750252244804,-460.0,0.00022465,6]
[366428191,1750252244814,-460.0,0.00022465,6]
[366428193,1750252244823,-311.45290027,0.00022465,6]
[366428195,1750252244833,-460.0,0.00022465,6]
[366428197,1750252244843,-460.0,0.00022465,6]
[366428199,1750252244852,-460.0,0.00022465,6]
[366428201,1750252244862,-558.49411158,0.00022465,6]
[366428203,1750252244872,-494.89470438,0.00022465,6]
[366428205,1750252244881,-430.0,0.00022465,6]
[366428207,1750252244891,-460.0,0.00022465,6]
[366428209,1750252244901,-380.0,0.00022465,6]
[366428211,1750252244911,-426.55092927,0.00022465,6]
[366428213,1750252244924,-460.0,0.00022465,6]
[366428215,1750252244934,-460.0,0.00022465,6]
[366428217,1750252244944,-497.04,0.00022465,6]
[366428219,1750252244954,-460.0,0.00022465,6]
[366428221,1750252244963,-1212.23,0.00022465,6]
[366428223,1750252244974,-460.0,0.00022465,6]
[366428225,1750252244985,-460.0,0.00022465,6]
[366428227,1750252244995,-562.92450865,0.00022465,6]
[366428243,1750252245141,-258.23189614,0.00022465,6]
[366428244,1750252245151,-460.0,0.00022465,6]
[366428245,1750252245160,-460.0,0.00022465,6]
[366428246,1750252245169,-460.0,0.00022465,6]
[366428247,1750252245179,-460.0,0.00022465,6]
[366428248,1750252245187,-460.0,0.00022465,6]
[366428249,1750252245197,-460.0,0.00022465,6]
[366428250,1750252245206,-460.0,0.00022465,6]
[366428251,1750252245215,-460.0,0.00022465,6]
[366428252,1750252245225,-460.0,0.00022465,6]
[366428253,1750252245235,-1479.93,0.00022465,6]
[366428254,1750252245243,-460.0,0.00022465,6]
[366428255,1750252245252,-1494.46,0.00022465,6]
[366428256,1750252245261,-460.0,0.00022465,6]
[366428257,1750252245270,-460.0,0.00022465,6]
[366428258,1750252245279,-460.0,0.00022465,6]
[366428259,1750252245288,-460.0,0.00022465,6]
[366428260,1750252245297,-896.68,0.00022465,6]
[366428261,1750252245306,-460.0,0.00022465,6]
[366428262,1750252245315,-460.0,0.00022465,6]
[366428263,1750252245324,-1162.77,0.00022465,6]
[366428264,1750252245333,-460.0,0.00022465,6]
[366428265,1750252245342,-460.0,0.00022465,6]
[366428266,1750252245352,-460.0,0.00022465,6]
[366428267,1750252245360,-460.0,0.00022465,6]
[366428268,1750252245370,-1027.62,0.00022465,6]
[366428269,1750252245379,-467.63044643,0.00022465,6]
[366428270,1750252245387,-460.0,0.00022465,6]
[366428271,1750252245397,-350.0,0.00022465,6]
[366428272,1750252245406,-460.0,0.00022465,6]
[366428273,1750252245416,-460.0,0.00022465,6]
[366428274,1750252245425,-460.0,0.00022465,6]
[366428275,1750252245434,-460.0,0.00022465,6]
[366428276,1750252245443,-460.0,0.00022465,6]
[366428278,1750252245452,-460.0,0.00022465,6]
[366428279,1750252245462,-460.0,0.00022465,6]
[366428280,1750252245471,-460.0,0.00022465,6]
[366428282,1750252245480,-460.0,0.00022465,6]
[366428284,1750252245490,-460.0,0.00022465,6]
[366428286,1750252245499,-460.0,0.00022465,6]
[366428288,1750252245509,-731.23,0.00022465,6]
[366428290,1750252245518,-460.0,0.00022465,6]
[366428292,1750252245527,-460.0,0.00022465,6]
[366428294,1750252245537,-460.0,0.00022465,6]
[366428296,1750252245546,-460.0,0.00022465,6]
[366428298,1750252245556,-460.0,0.00022465,6]
[366428301,1750252245565,-460.0,0.00022465,6]
[366428303,1750252245575,-460.0,0.00022465,6]
[366428305,1750252245584,-460.0,0.00022465,6]
[366428306,1750252245593,-460.0,0.00022465,6]
[366428308,1750252245603,-460.0,0.00022465,6]
[366428310,1750252245612,-460.0,0.00022465,6]
[366428313,1750252245622,-460.0,0.00022465,6]
[366428315,1750252245631,-460.0,0.00022465,6]
[366428317,1750252245642,-460.0,0.00022465,6]
[366428320,1750252245651,-460.0,0.00022465,6]
[366428322,1750252245661,-460.0,0.00022465,6]
[366428324,1750252245671,-460.0,0.00022465,6]
[366428325,1750252245680,-507.09,0.00022465,6]
[366428328,1750252245690,-460.0,0.00022465,6]
[366428329,1750252245699,-872.53,0.00022465,6]
[366428331,1750252245709,-483.05177797,0.00022465,6]
[366428333,1750252245718,-506.98644192,0.00022465,6]
[366428335,1750252245728,-460.0,0.00022465,6]
[366428337,1750252245737,-460.0,0.00022465,6]
[366428339,1750252245746,-460.0,0.00022465,6]
[366428341,1750252245756,-209.2549146,0.00022465,6]
[366428343,1750252245766,-460.0,0.00022465,6]
[366428345,1750252245776,-460.0,0.00022465,6]
[366428347,1750252245786,-460.0,0.00022465,6]
[366428349,1750252245796,-535.46,0.00022465,6]
[366428351,1750252245805,-460.0,0.00022465,6]
[366428353,1750252245815,-460.0,0.00022465,6]
[366428355,1750252245825,-460.0,0.00022465,6]
[366428357,1750252245834,-460.0,0.00022465,6]
[366428359,1750252245844,-460.0,0.00022465,6]
[366428361,1750252245854,-460.0,0.00022465,6]
[366428363,1750252245864,-390.0,0.00022465,6]
[366428365,1750252245873,-3020.47,0.00022465,6]
[366428367,1750252245883,-460.0,0.00022465,6]
[366428369,1750252245892,-1237.72,0.00022465,6]
[366428371,1750252245901,-460.0,0.00022465,6]
[366428373,1750252245910,-460.0,0.00022465,6]
[366428375,1750252245920,-460.0,0.00022465,6]
[366428377,1750252245934,-460.0,0.00022465,6]
[366428379,1750252245944,-500.0,0.00022473,2]
[366428381,1750252245954,-600.0,0.00022473,2]
[366428383,1750252245963,-500.0,0.00022473,2]
[366428385,1750252245972,-624.0,0.00022479,2]
[366428387,1750252245982,-1500.0,0.00022492,2]
[366428389,1750252245992,-10001.50595652,0.000225,4]
[366428391,1750252246002,-313.05,0.000225,7]
[366428393,1750252246012,-151.0,0.000225,7]
[366428395,1750252246021,-1033.0,0.000225,2]
[366428397,1750252246030,-1033.0,0.000225,2]
[366428398,1750252246039,-1033.0,0.000225,2]
[366428400,1750252246048,-1033.0,0.000225,2]
[366428402,1750252246057,-1033.0,0.000225,2]
[366428404,1750252246067,-1033.0,0.000225,2]
[366428406,1750252246076,-1033.0,0.000225,2]
[366428408,1750252246085,-1033.0,0.000225,2]
[366428410,1750252246095,-1033.0,0.000225,2]
[366428412,1750252246104,-1033.0,0.000225,2]
[366428414,1750252246113,-1000.0,0.00022521,2]
[366428416,1750252246123,-504.2656299,0.00022521,2]
[366428418,1750252246132,-1010.98661922,0.00022521,2]
[366428420,1750252246142,-1000.0,0.00022521,2]
[366428422,1750252246151,-1000.0,0.00022521,2]
[366428424,1750252246160,-519.2447875,0.00022521,2]
[366428426,1750252246170,-596.45854838,0.00022521,2]
[366428428,1750252246179,-1000.0,0.00022521,2]
[366428430,1750252246188,-1000.0,0.00022521,2]
[366428432,1750252246197,-1000.0,0.00022521,2]
[366428434,1750252246207,-500.0,0.00022521,2]
[366428436,1750252246217,-208.8,0.00022525,5]
[366428438,1750252246226,-624.0,0.00022564,2]
[366428440,1750252246235,-1521.50742211,0.0002259,7]
[366428442,1750252246244,-624.0,0.00022602,2]
[366428444,1750252246254,-624.0,0.00022607,2]
[366428447,1750252246263,-289.602447,0.0002266,7]
[366428449,1750252246272,-1000.0,0.00022667,5]
[366428451,1750252246281,-800.0,0.000227,2]
[366428453,1750252246290,-1551.1,0.000227,7]
[366428455,1750252246299,-213.43818883,0.000227,3]
[366428457,1750252246308,-12542.39314967,0.000227,3]
[366428459,1750252246317,-315.48910325,0.000227,3]
[366428461,1750252246326,-800.0,0.00022702,2]
[366428463,1750252246337,-624.0,0.00022713,2]
[366428465,1750252246346,-5000.0,0.00022716,2]
[366428467,1750252246355,-458.0,0.00022739,6]
[366428469,1750252246364,-460.0,0.00022739,6]
[366428471,1750252246373,-460.0,0.00022739,6]
[366428473,1750252246382,-460.0,0.00022739,2]
[366428475,1750252246391,-460.0,0.00022739,6]
[366428477,1750252246399,-460.0,0.00022739,6]
[366428479,1750252246408,-460.0,0.00022739,6]
[366428481,1750252246417,-460.0,0.00022739,6]
[366428482,1750252246426,-589.28494512,0.00022739,6]
[366428484,1750252246435,-460.0,0.00022739,6]
[366428486,1750252246444,-460.0,0.00022739,6]
[366428488,1750252246453,-460.0,0.00022739,6]
[366428490,1750252246462,-309.95066038,0.00022739,6]
[366428492,1750252246471,-460.0,0.00022739,6]
[366428494,1750252246481,-460.0,0.00022739,6]
[366428496,1750252246490,-460.0,0.00022739,6]
[366428498,1750252246499,-460.0,0.00022739,6]
[366428500,1750252246508,-460.0,0.00022739,6]
[366428502,1750252246517,-460.0,0.00022739,6]
[366428504,1750252246526,-460.0,0.00022739,6]
[366428506,1750252246535,-460.0,0.00022739,6]
[366428508,1750252246545,-460.0,0.00022739,6]
[366428510,1750252246554,-420.0,0.00022739,6]
[366428512,1750252246563,-460.0,0.00022739,6]
[366428514,1750252246573,-460.0,0.00022739,6]
[366428516,1750252246582,-460.0,0.00022739,6]
[366428518,1750252246591,-460.0,0.00022739,6]
[366428520,1750252246601,-460.0,0.00022739,6]
[366428522,1750252246610,-460.0,0.00022739,6]
[366428524,1750252246619,-460.0,0.00022739,6]
[366428526,1750252246628,-521.07779901,0.00022739,6]
[366428528,1750252246637,-289.81192431,0.00022739,6]
[366428530,1750252246647,-460.0,0.00022739,6]
[366428532,1750252246656,-460.0,0.00022739,6]
[366428534,1750252246665,-460.0,0.00022739,6]
[366428536,1750252246674,-460.0,0.00022739,6]
[366428538,1750252246683,-460.0,0.00022739,6]
[366428540,1750252246692,-460.0,0.00022739,6]
[366428542,1750252246701,-460.0,0.00022739,6]
[366428544,1750252246711,-460.0,0.00022739,6]
[366428546,1750252246721,-497.04,0.00022739,6]
[366428548,1750252246730,-460.0,0.00022739,6]
[366428549,1750252246739,-1212.23,0.00022739,6]
[366428551,1750252246749,-460.0,0.00022739,6]
[366428553,1750252246759,-332.00097275,0.00022739,6]
[366428555,1750252246768,-313.0829258,0.00022739,6]
[366428557,1750252246777,-460.0,0.00022739,6]
[366428559,1750252246787,-460.0,0.00022739,6]
[366428561,1750252246796,-370.0,0.00022739,6]
[366428563,1750252246805,-460.0,0.00022739,6]
[366428565,1750252246815,-460.0,0.00022739,6]
[366428567,1750252246825,-460.0,0.00022739,6]
[366428569,1750252246834,-460.0,0.00022739,6]
[366428571,1750252246843,-460.0,0.00022739,6]
[366428574,1750252246853,-1479.93,0.00022739,6]
[366428575,1750252246862,-460.0,0.00022739,6]
[366428577,1750252246871,-1494.46,0.00022739,6]
[366428579,1750252246880,-460.0,0.00022739,6]
[366428581,1750252246889,-460.0,0.00022739,6]
[366428583,1750252246898,-460.0,0.00022739,6]
[366428585,1750252246907,-460.0,0.00022739,6]
[366428587,1750252246918,-896.68,0.00022739,6]
[366428589,1750252246929,-460.0,0.00022739,6]
[366428591,1750252246938,-460.0,0.00022739,6]
[366428593,1750252246948,-1162.77,0.00022739,6]
[366428595,1750252246957,-460.0,0.00022739,6]
[366428597,1750252246966,-460.0,0.00022739,6]
[366428599,1750252246976,-460.0,0.00022739,6]
[366428601,1750252246985,-460.0,0.00022739,6]
[366428603,1750252246995,-1027.62,0.00022739,6]
[366428605,1750252247004,-460.0,0.00022739,6]
[366428607,1750252247014,-460.0,0.00022739,6]
[366428609,1750252247023,-460.0,0.00022739,6]
[366428611,1750252247032,-460.0,0.00022739,6]
[366428613,1750252247041,-460.0,0.00022739,6]
[366428615,1750252247050,-460.0,0.00022739,6]
[366428617,1750252247060,-460.0,0.00022739,6]
[366428619,1750252247069,-460.0,0.00022739,6]
[366428621,1750252247078,-460.0,0.00022739,6]
[366428623,1750252247088,-460.0,0.00022739,6]
[366428625,1750252247097,-731.23,0.00022739,6]
[366428627,1750252247105,-460.0,0.00022739,6]
[366428629,1750252247114,-460.0,0.00022739,6]
[366428630,1750252247123,-460.0,0.00022739,6]
[366428632,1750252247132,-460.0,0.00022739,6]
[366428634,1750252247141,-290.0,0.00022739,6]
[366428636,1750252247151,-460.0,0.00022739,6]
[366428638,1750252247160,-460.0,0.00022739,6]
[366428640,1750252247170,-378.7287796,0.00022739,6]
[366428642,1750252247179,-460.0,0.00022739,6]
[366428644,1750252247188,-460.0,0.00022739,6]
[366428646,1750252247198,-460.0,0.00022739,6]
[366428648,1750252247207,-460.0,0.00022739,6]
[366428650,1750252247216,-460.0,0.00022739,6]
[366428652,1750252247226,-460.0,0.00022739,6]
[366428654,1750252247235,-460.0,0.00022739,6]
[366428656,1750252247245,-460.0,0.00022739,6]
[366428658,1750252247254,-460.0,0.00022739,6]
[366428660,1750252247263,-507.09,0.00022739,6]
[366428662,1750252247272,-460.0,0.00022739,6]
[366428664,1750252247281,-872.53,0.00022739,6]
[366428666,1750252247290,-460.0,0.00022739,6]
[366428668,1750252247299,-330.0,0.00022739,6]
[366428670,1750252247308,-460.0,0.00022739,6]
[366428672,1750252247318,-460.0,0.00022739,6]
[366428674,1750252247326,-460.0,0.00022739,6]
[366428676,1750252247336,-535.46,0.00022739,6]
[366428678,1750252247345,-460.0,0.00022739,6]
[366428680,1750252247355,-460.0,0.00022739,6]
[366428682,1750252247364,-162.20404482,0.00022739,6]
[366428684,1750252247373,-460.0,0.00022739,6]
[366428686,1750252247382,-460.0,0.00022739,6]
[366428688,1750252247392,-460.0,0.00022739,6]
[366428699,1750252247401,-3020.47,0.00022739,6]
[366428701,1750252247499,-460.0,0.00022739,6]
[366428703,1750252247509,-1237.72,0.00022739,6]
[366428705,1750252247519,-380.0,0.00022739,6]
[366428708,1750252247530,-235.55397468,0.00022739,6]
[366428709,1750252247539,-460.0,0.00022739,6]
[366428711,1750252247548,-321.19531617,0.00022739,6]
[366428714,1750252247558,-624.0,0.00022755,2]
[366428715,1750252247567,-208.8,0.00022762,6]
[366428717,1750252247576,-800.0,0.00022788,2]
[366428719,1750252247585,-624.0,0.00022796,2]
[366428721,1750252247594,-1521.50742211,0.00022797,7]
[366428723,1750252247604,-150.0,0.00022857,2]
[366428725,1750252247614,-150.0,0.00022857,2]
[366428727,1750252247623,-964.0,0.00022857,2]
[366428729,1750252247632,-500.0,0.00022859,2]
[366428731,1750252247641,-500.0,0.00022875,2]
[366428733,1750252247651,-500.0,0.00022885,2]
[366428735,1750252247660,-212.48080632,0.000229,2]
[366428737,1750252247670,-1505.43511278,0.00023,15]
[366428739,1750252247680,-160.0,0.00023,4]
[366428741,1750252247689,-160.0,0.00023,4]
[366428743,1750252247699,-5000.0,0.00023,9]
[366428745,1750252247708,-424.70586748,0.00023,3]
[366428747,1750252247718,-1007.176051,0.00023,2]
[366428749,1750252247728,-208.8,0.00023,6]
[366428751,1750252247737,-229.98435572,0.00023,3]
[366428753,1750252247747,-150.348257,0.00023,2]
[366428755,1750252247756,-160.0,0.00023,3]
[366428757,1750252247766,-171.0,0.00023,7]
[366428759,1750252247775,-1521.50742211,0.00023003,8]
[366428761,1750252247785,-460.0,0.00023013,6]
[366428763,1750252247794,-581.09874489,0.00023013,6]
[366428765,1750252247804,-460.0,0.00023013,6]
[366428767,1750252247813,-460.0,0.00023013,2]
[366428768,1750252247822,-460.0,0.00023013,6]
[366428769,1750252247830,-460.0,0.00023013,6]
[366428770,1750252247839,-460.0,0.00023013,6]
[366428771,1750252247848,-362.23030786,0.00023013,6]
[366428772,1750252247857,-460.0,0.00023013,6]
[366428773,1750252247866,-460.0,0.00023013,6]
[366428774,1750252247875,-320.75499969,0.00023013,6]
[366428775,1750252247884,-460.0,0.00023013,6]
[366428777,1750252247893,-460.0,0.00023013,6]
[366428779,1750252247903,-460.0,0.00023013,6]
[366428781,1750252247912,-290.96006452,0.00023013,6]
[366428783,1750252247922,-460.0,0.00023013,6]
[366428785,1750252247933,-460.0,0.00023013,6]
[366428787,1750252247943,-460.0,0.00023013,6]
[366428789,1750252247952,-460.0,0.00023013,6]
[366428791,1750252247961,-460.0,0.00023013,6]
[366428793,1750252247972,-460.0,0.00023013,6]
[366428795,1750252247982,-460.0,0.00023013,6]
[366428797,1750252247991,-460.0,0.00023013,6]
[366428799,1750252248002,-460.0,0.00023013,6]
[366428801,1750252248011,-460.0,0.00023013,6]
[366428803,1750252248021,-460.0,0.00023013,6]
[366428805,1750252248031,-260.0,0.00023013,6]
[366428807,1750252248040,-460.0,0.00023013,6]
[366428809,1750252248050,-460.0,0.00023013,6]
[366428811,1750252248059,-460.0,0.00023013,6]
[366428813,1750252248069,-460.0,0.00023013,6]
[366428815,1750252248079,-460.0,0.00023013,6]
[366428817,1750252248088,-460.0,0.00023013,6]
[366428819,1750252248098,-460.0,0.00023013,6]
[366428821,1750252248107,-497.04,0.00023013,6]
[366428823,1750252248117,-460.0,0.00023013,6]
[366428825,1750252248126,-1212.23,0.00023013,6]